bitfinex/quotes_SOLUSD_20250805
["timestamp","ask_amount","ask_price","bid_price","bid_amount"]
[1754394696709,6.85473214,171.03,171.0,0.06]
[1754394696926,26.7,171.05,171.0,0.06]
[1754394697100,6.15473214,171.02,171.0,0.06]
[1754394697999,6.15473214,171.03,171.0,0.77]
[1754394698249,6.15473214,171.02,171.0,0.06]
[1754394698752,6.85473214,171.02,171.0,0.06]
[1754394699434,6.85473214,171.01,171.0,0.06]
[1754394700134,6.85473214,171.01,171.0,0.01]
[1754394701716,0.7,171.01,171.0,0.01]
[1754394702012,6.85473214,171.01,171.0,0.01]
[1754394702227,0.7,171.01,171.0,0.01]
[1754394702432,6.85473214,171.01,171.0,0.01]
[1754394702632,6.15473214,171.01,171.0,0.01]
[1754394702834,6.85473214,171.01,171.0,0.01]
[1754394704048,12.70234339,171.01,171.0,0.01]
[1754394704631,6.15473214,171.01,171.0,0.01]
[1754394704846,6.85473214,171.01,171.0,0.01]
[1754394705345,27.80855896,171.01,171.0,0.01]
[1754394706042,5.84761125,171.01,171.0,0.01]
[1754394706240,12.70234339,171.01,171.0,0.01]
[1754394706438,27.80855896,171.01,171.0,0.01]
[1754394707636,12.70234339,171.01,171.0,0.01]
[1754394709025,6.85473214,171.01,171.0,0.01]
[1754394709542,0.7,171.05,171.0,0.01]
[1754394709741,12.00063416,171.06,171.01,6.15473214]
[1754394709933,0.7,171.07,171.03,6.15473214]
[1754394710250,5.84521861,171.08,171.03,6.86473214]
[1754394710456,11.99995075,171.08,171.03,6.86473214]
[1754394710627,6.15473214,171.06,171.0,6.87473214]
[1754394710823,0.7,171.05,171.0,6.87473214]
[1754394711135,6.85473214,171.06,171.01,6.86473214]
[1754394711337,5.84521861,171.08,171.03,6.15473214]
[1754394711338,6.85473214,171.08,171.03,6.15473214]
[1754394711532,6.85473214,171.08,171.04,0.71]
[1754394711733,0.7,171.07,171.02,5.84698277]
[1754394711957,6.85473214,171.06,171.02,0.71]
[1754394712151,0.7,171.06,171.02,0.71]
[1754394713635,6.85473214,171.05,171.0,6.16473214]
[1754394714140,6.85473214,171.05,171.0,6.87473214]
[1754394714938,6.54648276,171.05,171.0,6.87473214]
[1754394715139,6.85473214,171.04,171.0,0.01]
[1754394715350,6.15473214,171.01,171.0,0.01]
[1754394716457,6.85473214,171.01,171.0,0.01]
[1754394717344,12.70234339,171.01,171.0,0.01]
[1754394720856,16.62899794,171.01,171.0,0.01]
[1754394722172,38.03210722,171.01,171.0,0.01]
[1754394722742,79.45210722,171.01,171.0,0.01]
[1754394724460,41.10621557,170.99,170.98,0.06]
[1754394724657,47.26094771,170.99,170.98,0.06]
[1754394724850,51.85749626,170.99,170.98,0.06]
[1754394725249,53.77924293,170.99,170.98,0.06]
[1754394726357,57.70446019,170.99,170.98,0.06]
[1754394728171,53.77924293,170.99,170.98,0.06]
[1754394728375,57.70206919,170.99,170.98,0.06]
[1754394729171,57.84423076,170.99,170.98,0.06]
[1754394729348,6.15473214,170.97,170.96,0.06]
[1754394729677,26.0,170.93,170.87,6.56238771]
[1754394729861,6.15473214,170.89,170.88,0.71]
[1754394730247,6.15473214,170.89,170.86,0.71]
[1754394730446,6.15473214,170.87,170.86,0.71]
[1754394730871,6.15473214,170.87,170.84,47.45335657]
[1754394730872,6.15473214,170.87,170.84,42.31]
[1754394731077,6.15473214,170.86,170.85,0.71]
[1754394731869,26.0,170.88,170.85,0.71]
[1754394732054,6.15473214,170.86,170.85,0.71]
[1754394732961,26.0,170.88,170.85,0.71]
[1754394733164,6.15473214,170.86,170.85,0.71]
[1754394733582,6.15473214,170.86,170.84,41.6]
[1754394733880,6.15473214,170.86,170.84,42.31]
[1754394734078,26.0,170.88,170.85,0.71]
[1754394734264,6.15473214,170.86,170.85,0.71]
[1754394735066,6.15473214,170.86,170.84,41.6]
[1754394735272,6.15473214,170.86,170.84,42.31]
[1754394735681,26.0,170.88,170.85,0.71]
[1754394735855,6.15473214,170.86,170.85,0.71]
[1754394737677,6.15473214,170.86,170.84,47.45326889]
[1754394737879,148.87,170.92,170.85,6.86473214]
[1754394738083,6.15473214,170.89,170.86,0.71]
[1754394738585,6.15473214,170.89,170.86,0.69]
[1754394738770,6.15473214,170.88,170.86,0.69]
[1754394739079,6.15473214,170.89,170.86,6.54247083]
[1754394739281,15.10621557,170.97,170.88,6.15473214]
[1754394739503,15.10621557,170.97,170.86,5.85247083]
[1754394739504,6.15473214,170.94,170.89,6.15473214]
[1754394739786,6.15473214,170.94,170.89,47.53473214]
[1754394739968,6.15473214,170.95,170.9,6.15473214]
[1754394740283,6.15473214,170.96,170.91,6.15473214]
[1754394740576,6.15473214,170.96,170.92,0.71]
[1754394741168,6.15473214,170.96,170.92,6.56051115]
[1754394741362,6.15473214,170.93,170.87,6.15473214]
[1754394741558,26.0,170.97,170.91,6.15473214]
[1754394741759,6.18473214,171.01,170.96,6.15473214]
[1754394741958,0.03,171.01,170.97,6.86473214]
[1754394742180,0.03,171.01,170.98,0.71]
[1754394742483,6.18473214,171.01,170.98,0.71]
[1754394742866,0.03,171.01,170.98,0.71]
[1754394743457,0.03,171.01,170.99,0.71]
[1754394743669,6.85473214,171.01,170.96,53.46396963]
[1754394743870,6.18473214,171.01,170.97,0.71]
[1754394744383,0.03,171.01,170.97,6.86473214]
[1754394744588,6.15473214,170.98,170.91,0.71]
[1754394744794,6.15473214,170.95,170.92,41.56]
[1754394745084,6.15473214,170.96,170.92,42.27]
[1754394745287,5.84897935,170.97,170.92,42.27]
[1754394745459,6.15473214,170.96,170.92,42.27]
[1754394745660,6.15473214,170.95,170.92,42.27]
[1754394745892,6.15473214,170.96,170.92,48.12065848]
[1754394746190,6.82473214,170.97,170.93,0.71]
[1754394746362,6.15473214,170.96,170.93,0.71]
[1754394746774,6.15473214,170.96,170.92,41.56]
[1754394746973,6.15473214,170.95,170.92,41.56]
[1754394747493,6.15473214,170.93,170.92,41.56]
[1754394748089,148.2,170.98,170.92,42.27]
[1754394748266,148.2,170.98,170.93,0.71]
[1754394748267,6.15473214,170.96,170.93,0.71]
[1754394748458,6.15473214,170.95,170.93,0.71]
[1754394748661,6.15473214,170.95,170.92,47.41067237]
[1754394748869,6.15473214,170.95,170.92,41.56]
[1754394749200,6.15473214,170.97,170.93,0.72]
[1754394749361,6.15473214,170.97,170.93,6.57009214]
[1754394749560,0.03,170.96,170.93,6.57009214]
[1754394750259,6.18473214,170.96,170.93,6.57009214]
[1754394750567,6.15473214,170.95,170.92,41.56]
[1754394750792,6.15473214,170.94,170.92,41.56]
[1754394751110,6.85473214,170.93,170.85,6.5730875]
[1754394751403,6.15473214,170.89,170.87,41.56]
[1754394751609,6.55082012,170.92,170.87,47.41234122]
[1754394751610,6.15473214,170.9,170.87,47.41234122]
[1754394751769,6.15473214,170.89,170.87,47.41234122]
[1754394752274,6.15473214,170.92,170.88,0.72]
[1754394752477,6.15473214,170.93,170.88,6.87473214]
[1754394752671,6.15473214,170.93,170.89,0.72]
[1754394752872,6.15473214,170.93,170.9,0.72]
[1754394753277,6.15473214,170.93,170.9,6.57119071]
[1754394753691,6.15473214,170.93,170.91,41.56]
[1754394754573,6.85473214,170.92,170.87,0.72]
[1754394754773,6.15473214,170.9,170.88,41.56]
[1754394754981,6.15473214,170.91,170.88,41.56]
[1754394755706,6.15473214,170.9,170.88,41.56]
[1754394756200,6.15473214,170.91,170.88,48.13205294]
[1754394756408,5.85054665,170.93,170.88,47.41205294]
[1754394756621,6.85473214,170.9,170.88,41.56]
[1754394756790,6.15473214,170.89,170.88,41.56]
[1754394757973,6.85473214,170.89,170.88,41.56]
[1754394758396,6.85473214,170.89,170.86,41.64]
[1754394758704,6.15473214,170.88,170.86,41.64]
[1754394759402,6.15473214,170.89,170.86,41.64]
[1754394759600,6.55110578,170.91,170.86,42.36]
[1754394759803,6.15473214,170.9,170.86,42.36]
[1754394760274,6.15473214,170.89,170.86,42.36]
[1754394760878,6.15473214,170.89,170.86,48.21269444]
[1754394761705,6.15473214,170.89,170.86,41.64]
[1754394761883,6.15473214,170.88,170.86,41.64]
[1754394762904,6.15473214,170.9,170.87,0.72]
[1754394763089,6.85473214,170.9,170.86,47.49271895]
[1754394763291,6.15473214,170.9,170.87,0.72]
[1754394763586,6.15473214,170.9,170.86,47.49271895]
[1754394763789,6.15473214,170.9,170.87,0.72]
[1754394764610,6.15473214,170.91,170.87,0.72]
[1754394765104,6.15473214,170.91,170.88,5.85205992]
[1754394765292,6.15473214,170.9,170.89,41.58]
[1754394765488,148.2,170.94,170.89,41.58]
[1754394765705,6.15473214,170.93,170.89,42.3]
[1754394765910,155.05473214,170.94,170.9,0.72]
[1754394766103,155.05473214,170.94,170.89,41.58]
[1754394766104,6.15473214,170.92,170.89,41.58]
[1754394766705,6.15473214,170.93,170.89,42.3]
[1754394767192,6.15473214,170.93,170.9,5.85137507]
[1754394767727,148.2,170.94,170.91,0.72]
[1754394767929,0.03,170.96,170.92,47.73473214]
[1754394768092,0.03,170.96,170.93,6.87473214]
[1754394769109,0.03,170.96,170.92,47.73473214]
[1754394769293,0.03,170.96,170.93,5.85034809]
[1754394769695,0.03,170.96,170.93,6.57034809]
[1754394770292,0.03,170.96,170.94,0.72]
[1754394770520,0.03,170.96,170.95,41.56]
[1754394770716,0.03,170.96,170.95,48.43473214]
[1754394771312,0.03,170.96,170.95,54.28439578]
[1754394771691,0.03,170.96,170.95,54.42655735]
[1754394772625,1e-08,170.98,170.97,26.0]
[1754394772833,1e-08,170.98,170.97,47.40310928]
[1754394773342,1e-08,170.98,170.97,53.97208863]
[1754394773716,1e-08,170.98,170.97,95.51208863]
[1754394774438,1e-08,170.98,170.97,80.40587306]
[1754394774658,1e-08,170.98,170.97,5.84897935]
[1754394774840,1e-08,170.98,170.97,47.36897935]
[1754394776213,1e-08,170.98,170.97,41.52]
[1754394777625,1e-08,170.98,170.97,47.36897935]
[1754394778618,1e-08,170.98,170.97,41.52]
[1754394778951,1e-08,170.98,170.97,41.48]
[1754394779912,1e-08,170.98,170.97,47.32897935]
[1754394782744,1e-08,170.98,170.97,58.01943882]
[1754394784575,1e-08,170.98,170.97,57.32943882]
[1754394785043,0.70000001,170.98,170.97,41.46]
[1754394790429,1e-08,170.98,170.97,47.30897935]
[1754394791037,1e-08,170.98,170.97,41.46]
[1754394793870,1e-08,170.98,170.97,47.30897935]
[1754394795762,1e-08,170.98,170.97,41.46]
[1754394795940,0.70000001,170.98,170.97,41.46]
[1754394796141,1e-08,170.98,170.97,47.30897935]
[1754394797563,0.70000001,170.98,170.97,41.46]
[1754394797992,0.70000001,170.98,170.95,0.06]
[1754394797993,10.55829791,170.98,170.95,0.06]
[1754394798160,0.7,170.97,170.96,41.36]
[1754394798484,10.5582979,170.97,170.95,41.42]
[1754394798675,6.16557705,170.96,170.95,41.42]
[1754394798968,6.86557705,170.96,170.95,41.42]
[1754394800453,1e-08,170.98,170.95,41.42]
[1754394800656,6.16557705,170.97,170.95,41.42]
[1754394800857,6.86557705,170.96,170.95,41.42]
[1754394802364,6.16557705,170.96,170.95,41.42]
[1754394802869,6.86557705,170.96,170.95,41.42]
[1754394804143,6.16557705,170.96,170.95,41.42]
[1754394804452,6.16557705,170.97,170.95,41.42]
[1754394804848,6.86557705,170.97,170.95,41.42]
[1754394806767,1e-08,170.98,170.95,41.42]
[1754394806768,6.86557705,170.96,170.95,41.42]
[1754394807679,6.86557705,170.96,170.95,0.06]
[1754394807884,12.71489852,170.96,170.95,0.06]
[1754394808181,6.54932147,170.96,170.95,0.06]
[1754394808359,32.86557705,170.96,170.95,0.06]
[1754394809172,6.86557705,170.96,170.95,0.06]
[1754394810079,6.16557705,170.96,170.95,41.36]
[1754394810278,0.66000001,170.98,170.95,41.36]
[1754394810575,6.16557705,170.97,170.95,41.36]
[1754394811098,1e-08,170.98,170.96,0.72]
[1754394811284,1e-08,170.98,170.97,47.46557705]
[1754394811588,1e-08,170.98,170.97,48.18557705]
[1754394811787,1e-08,170.98,170.97,47.68557705]
[1754394811962,1e-08,170.98,170.97,52.8145564]
[1754394812156,1e-08,170.98,170.97,46.64897935]
[1754394812352,1e-08,170.98,170.97,40.8]
[1754394812879,1e-08,170.98,170.97,46.64897935]
[1754394813065,1e-08,170.98,170.97,47.36897935]
[1754394813379,1e-08,170.98,170.97,46.64897935]
[1754394813760,1e-08,170.98,170.97,47.36897935]
[1754394813958,1e-08,170.98,170.97,53.5345564]
[1754394814682,1e-08,170.98,170.97,53.67671797]
[1754394816479,1e-08,170.98,170.97,69.36783147]
[1754394818685,1e-08,170.98,170.97,71.70886047]
[1754394818884,1e-08,170.98,170.97,14.49774697]
[1754394819206,1e-08,170.98,170.97,55.6555854]
[1754394822085,1e-08,170.98,170.97,56.51774697]
[1754394822591,1e-08,170.98,170.97,55.79774697]
[1754394823665,1e-08,170.98,170.97,14.3555854]
[1754394823863,1e-08,170.98,170.97,55.6355854]
[1754394824372,1e-08,170.98,170.97,49.78660605]
[1754394824582,1e-08,170.98,170.97,41.28]
[1754394824897,0.66000001,170.98,170.97,41.28]
[1754394825285,6.82557706,170.98,170.97,41.28]
[1754394825494,6.82557706,170.98,170.97,41.26]
[1754394826391,6.82557706,170.98,170.95,0.06]
[1754394826596,6.82557705,170.97,170.95,0.06]
[1754394826987,5.84879965,170.98,170.96,41.26]
[1754394827167,6.82557705,170.97,170.96,41.26]
[1754394827362,0.66,170.97,170.96,41.26]
[1754394827898,6.82557705,170.97,170.96,41.26]
[1754394829197,1e-08,170.98,170.96,41.26]
[1754394829375,1e-08,170.98,170.96,47.10928859]
[1754394830193,0.66000001,170.98,170.96,41.26]
[1754394830392,0.66000001,170.98,170.96,47.10931895]
[1754394830593,1e-08,170.98,170.96,47.10931895]
[1754394830914,1e-08,170.98,170.97,6.16557705]
[1754394831421,1e-08,170.98,170.97,5.84897935]
[1754394831715,1e-08,170.98,170.97,12.87671797]
[1754394832128,1e-08,170.98,170.97,27.98293354]
[1754394833215,1e-08,170.98,170.97,12.15671797]
[1754394833513,1e-08,170.98,170.97,53.2745564]
[1754394834014,1e-08,170.98,170.97,53.9945564]
[1754394834994,1e-08,170.98,170.97,53.2745564]
[1754394835801,1e-08,170.98,170.97,55.6161344]
[1754394836416,1e-08,170.98,170.97,56.47829597]
[1754394836808,1e-08,170.98,170.97,71.58451154]
[1754394837328,1e-08,170.98,170.97,71.64451154]
[1754394838018,1e-08,170.98,170.97,72.22940947]
[1754394841016,1e-08,170.98,170.97,75.16979287]
[1754394841229,1e-08,171.0,170.99,26.0]
[1754394841412,1e-08,171.0,170.99,73.52773862]
[1754394841922,1e-08,171.0,170.99,76.54849462]
[1754394843226,1e-08,171.0,170.99,82.39678984]
[1754394843528,1e-08,171.0,170.99,80.05603384]
[1754394845131,1e-08,171.01,171.0,20.95416878]
[1754394845422,1e-08,171.03,171.02,26.0]
[1754394845615,1e-08,171.03,171.02,32.89246555]
[1754394845813,1e-08,171.03,171.02,73.52773862]
[1754394846021,1e-08,171.03,171.02,74.20773862]
[1754394846609,1e-08,171.03,171.02,32.30773862]
[1754394846815,0.68000001,171.03,171.02,47.52773862]
[1754394847211,0.68000001,171.03,171.02,53.23284637]
[1754394847526,6.84557706,171.03,170.98,5.84863726]
[1754394847729,6.16557705,171.01,170.98,5.84863726]
[1754394847912,0.68,171.0,170.99,41.22]
[1754394849213,0.68,171.0,170.99,47.06829522]
[1754394851827,0.68,171.0,170.99,41.22]
[1754394852608,6.84557705,171.0,170.99,41.22]
[1754394855326,6.84557705,171.0,170.97,5.90897196]
[1754394855534,0.68,170.99,170.98,41.22]
[1754394859237,6.84557705,170.99,170.98,41.22]
[1754394860828,0.68,170.99,170.98,41.22]
[1754394861137,155.04557705,171.01,170.98,47.06859085]
[1754394861354,154.36557705,171.01,170.98,47.06859085]
[1754394861648,0.68,171.0,170.98,47.06859085]
[1754394863649,148.2,171.01,170.99,0.68]
[1754394863828,148.2,171.01,171.0,41.22]
[1754394864361,148.88,171.01,171.0,41.22]
[1754394866129,160.89320629,171.01,170.99,41.22]
[1754394866334,6.84557705,171.0,170.99,41.22]
[1754394869444,6.16557705,171.0,170.99,41.22]
[1754394869846,154.36557705,171.01,170.99,47.06815099]
[1754394870442,154.36557705,171.01,171.0,41.22]
[1754394870860,155.02557705,171.01,171.0,41.22]
[1754394871244,155.02557705,171.01,170.97,5.90884395]
[1754394871445,155.02557705,171.01,170.98,41.22]
[1754394871446,6.16557705,170.99,170.98,41.22]
[1754394871645,6.82557705,170.99,170.98,41.22]
[1754394872048,12.67396323,170.99,170.97,0.06]
[1754394872236,6.82557705,170.98,170.97,0.06]
[1754394872746,32.82557705,170.98,170.97,0.06]
[1754394873339,47.93179262,170.98,170.97,0.06]
[1754394873655,51.85813273,170.98,170.97,0.06]
[1754394873837,93.07813273,170.98,170.97,0.06]
[1754394874039,98.92676999,170.98,170.97,0.06]
[1754394874242,103.60239798,170.98,170.97,0.06]
[1754394875763,98.92676999,170.98,170.97,0.06]
[1754394875939,95.00042988,170.98,170.97,0.06]
[1754394876142,84.51274438,170.98,170.97,0.06]
[1754394876744,88.43407926,170.98,170.97,0.06]
[1754394878060,32.82557705,170.98,170.97,0.06]
[1754394878559,38.67421431,170.98,170.97,0.06]
[1754394879960,0.66,171.02,170.97,0.77]
[1754394880136,6.16557705,171.0,170.97,0.06]
[1754394880341,6.82557705,171.0,170.97,0.06]
[1754394880541,4.58224751,171.02,170.97,0.06]
[1754394880741,6.16557705,171.0,170.97,0.77]
[1754394881048,6.82557705,170.99,170.97,0.06]
[1754394881365,6.16557705,170.98,170.97,0.06]
[1754394881544,6.82557705,170.98,170.97,0.06]
[1754394882343,0.66,170.98,170.97,0.06]
[1754394882546,6.82557705,170.98,170.97,0.06]
[1754394885454,12.67421431,170.98,170.97,0.06]
[1754394885974,6.82557705,170.98,170.97,0.06]
[1754394887869,12.67421431,170.98,170.97,0.06]
[1754394888970,6.82557705,170.98,170.97,0.06]
[1754394889878,12.67421431,170.98,170.97,0.06]
[1754394890854,26.0,170.96,170.95,0.06]
[1754394891074,88.49179262,170.96,170.95,0.06]
[1754394891374,6.16557705,170.88,170.85,0.71]
[1754394891577,6.16557705,170.88,170.86,41.28]
[1754394891779,6.16557705,170.87,170.86,41.28]
[1754394892083,6.16557705,170.88,170.86,41.28]
[1754394892464,6.16557705,170.88,170.86,47.13273991]
[1754394892663,6.16557705,170.89,170.87,0.71]
[1754394893491,6.16557705,170.89,170.88,0.71]
[1754394893780,6.16557705,170.89,170.88,6.56205992]
[1754394893987,0.66,170.92,170.88,6.56205992]
[1754394893988,6.16557705,170.9,170.88,6.56205992]
[1754394894282,6.16557705,170.9,170.88,5.85205992]
[1754394894669,6.16557705,170.9,170.87,5.85240241]
[1754394895064,6.16557705,170.9,170.87,6.56240241]
[1754394895865,0.66,170.92,170.87,5.85240241]
[1754394896068,67.22,170.93,170.88,0.71]
[1754394896069,6.16557705,170.91,170.88,0.71]
[1754394896557,6.16557705,170.91,170.87,5.85240241]
[1754394896759,6.16557705,170.9,170.87,5.85240241]
[1754394897182,6.16557705,170.9,170.87,6.56240241]
[1754394897562,26.0,170.93,170.88,0.71]
[1754394897785,6.16557705,170.94,170.88,6.87557705]
[1754394897986,6.16557705,170.93,170.88,6.87557705]
[1754394898189,0.66,170.93,170.89,0.71]
[1754394898394,6.82557705,170.93,170.89,0.71]
[1754394898686,6.16557705,170.93,170.9,41.22]
[1754394899095,6.16557705,170.93,170.91,0.7]
[1754394899458,0.66,170.95,170.91,0.7]
[1754394899459,6.16557705,170.94,170.91,0.7]
[1754394900165,6.16557705,170.93,170.9,41.22]
[1754394901081,6.86557705,170.93,170.9,41.22]
[1754394904478,6.16557705,170.93,170.9,41.22]
[1754394904901,148.2,170.94,170.9,47.77130376]
[1754394905203,6.16557705,170.93,170.9,47.83130376]
[1754394905701,6.16557705,170.93,170.9,41.98]
[1754394906204,148.9,170.94,170.9,41.98]
[1754394906394,6.16557705,170.93,170.9,41.98]
[1754394907005,6.16557705,170.93,170.9,41.28]
[1754394907213,0.7,170.92,170.9,41.28]
[1754394907698,6.16557705,170.93,170.9,41.28]
[1754394908079,6.86557705,170.93,170.9,41.28]
[1754394908543,154.36557705,170.94,170.9,47.831374]
[1754394908898,155.06557705,170.94,170.9,47.831374]
[1754394910311,6.16557705,170.96,170.91,0.7]
[1754394910603,6.86557705,170.95,170.91,0.14216157]
[1754394910982,0.7,170.94,170.91,0.14216157]
[1754394911493,0.7,170.94,170.91,5.99307412]
[1754394912015,0.7,170.94,170.91,0.14216157]
[1754394912592,6.16557705,170.95,170.91,0.84216157]
[1754394912790,6.54937837,170.96,170.91,6.69318219]
[1754394912995,6.16557705,170.95,170.92,0.7]
[1754394913214,6.16557705,170.95,170.93,41.22]
[1754394913817,6.16557705,170.96,170.93,41.92]
[1754394914023,6.54875895,170.98,170.93,41.92]
[1754394914196,6.16557705,170.97,170.93,41.92]
[1754394914397,6.86557705,170.97,170.93,41.92]
[1754394914715,6.16557705,170.97,170.94,0.7]
[1754394914913,12.014336,170.98,170.94,0.7]
[1754394915429,12.714336,170.98,170.93,53.23584415]
[1754394915728,12.714336,170.98,170.93,53.93584415]
[1754394916098,26.0,170.99,170.93,53.93584415]
[1754394916099,32.16557705,170.99,170.94,7.00773862]
[1754394916394,148.2,170.98,170.95,6.86557705]
[1754394916606,148.2,170.98,170.96,48.08557705]
[1754394916819,6.86557705,171.02,170.97,6.86557705]
[1754394917047,0.7,171.01,170.97,6.86557705]
[1754394917405,6.16557705,171.02,170.97,6.16557705]
[1754394917604,6.86557705,171.02,170.98,0.7]
[1754394917809,12.71288321,171.02,170.99,41.22]
[1754394918793,12.71288321,171.02,170.93,0.14216157]
[1754394918794,26.0,170.99,170.93,0.14216157]
[1754394919040,6.16557705,170.97,170.94,41.22]
[1754394919203,6.86557705,170.97,170.94,41.22]
[1754394921324,12.71458903,170.97,170.94,41.22]
[1754394921505,6.16557705,170.96,170.94,41.22]
[1754394921710,0.7,170.97,170.94,41.22]
[1754394921909,6.86557705,170.97,170.94,41.22]
[1754394922396,0.7,170.96,170.94,41.22]
[1754394922827,6.16557705,170.97,170.94,41.22]
[1754394923028,6.16557705,170.96,170.94,41.22]
[1754394923250,0.7,170.95,170.94,41.22]
[1754394923397,0.7,170.95,170.9,5.911264]
[1754394923398,6.86557705,170.95,170.9,0.06]
[1754394923614,6.16557705,170.93,170.91,41.22]
[1754394923944,6.16557705,170.94,170.91,41.22]
[1754394924132,6.16557705,170.94,170.91,0.7]
[1754394924445,6.16557705,170.94,170.92,41.2]
[1754394926319,6.86557705,170.94,170.92,41.2]
[1754394926936,12.01537113,170.95,170.92,41.2]
[1754394927547,12.71537113,170.95,170.92,41.2]
[1754394928328,148.2,170.94,170.92,41.2]
[1754394929024,148.2,170.94,170.92,41.9]
[1754394929632,148.2,170.94,170.93,0.7]
[1754394929857,12.01428834,170.98,170.93,0.7]
[1754394930140,12.67428834,170.98,170.93,6.86557705]
[1754394930338,6.82557705,170.98,170.94,0.7]
[1754394930533,6.82557705,170.98,170.95,41.2]
[1754394931044,12.01428794,170.98,170.95,41.2]
[1754394931248,0.66,170.97,170.95,41.2]
[1754394931767,12.01428794,170.98,170.95,41.2]
[1754394932048,12.67428794,170.98,170.95,41.2]
[1754394932644,6.82557705,170.98,170.95,41.2]
[1754394932824,186.24398667,170.99,170.95,41.2]
[1754394933149,160.24398667,170.99,170.95,41.9]
[1754394933345,154.39557705,170.99,170.95,41.2]
[1754394933531,148.23,170.99,170.96,0.7]
[1754394934046,148.23,170.99,170.96,6.54913468]
[1754394934219,148.23,170.99,170.96,12.71471173]
[1754394934423,148.23,170.99,170.97,0.7]
[1754394934629,148.23,170.99,170.98,41.2]
[1754394934873,0.03,170.99,170.98,48.06557705]
[1754394935835,0.03,170.99,170.98,48.20773862]
[1754394936133,0.03,170.99,170.98,47.89079883]
[1754394936335,0.03,170.99,170.98,54.05637588]
[1754394936536,0.03,170.99,170.98,53.35637588]
[1754394937235,0.69,170.99,170.96,6.16557705]
[1754394937427,0.69,170.99,170.97,41.2]
[1754394938452,0.66,170.98,170.97,41.2]
[1754394939937,0.03,170.99,170.97,41.2]
[1754394940630,0.03,170.99,170.97,53.91445276]
[1754394941030,0.03,170.99,170.98,6.30773862]
[1754394941368,0.03,170.99,170.98,7.00773862]
[1754394942263,0.03,170.99,170.98,27.96259145]
[1754394943233,1e-08,171.03,171.0,0.14216157]
[1754394943435,1e-08,171.03,171.02,6.30773862]
[1754394944134,1e-08,171.03,171.02,7.00773862]
[1754394944350,1e-08,171.03,171.02,12.85500794]
[1754394945037,0.66000001,171.03,171.01,47.36557705]
[1754394945659,0.66000001,171.03,171.02,6.16557705]
[1754394946843,0.66000001,171.03,171.01,41.2]
[1754394947162,0.66000001,171.03,171.01,53.21309404]
[1754394947940,1e-08,171.03,171.01,53.21309404]
[1754394948339,1e-08,171.03,171.02,12.01284637]
[1754394948657,1e-08,171.03,171.02,12.85500794]
[1754394950444,0.66000001,171.03,171.02,0.14216157]
[1754394950636,0.66000001,171.03,171.02,41.32216157]
[1754394951038,1e-08,171.03,171.02,53.33500794]
[1754394951452,0.66000001,171.03,171.02,53.33500794]
[1754394951658,1e-08,171.03,171.02,53.33500794]
[1754394952863,1e-08,171.03,171.02,54.03500794]
[1754394955570,0.66000001,171.03,170.98,56.42780873]
[1754394955751,0.66,171.02,171.01,6.16557705]
[1754394956072,0.66,171.02,171.01,47.48773862]
[1754394956643,0.66,171.02,171.01,41.32216157]
[1754394957250,0.66,171.02,170.99,12.01374526]
[1754394957570,0.66,171.02,171.0,41.18]
[1754394957764,0.66,171.02,171.01,41.18]
[1754394959479,12.67284637,171.02,171.01,41.18]
[1754394963580,0.66,171.02,171.01,41.18]
[1754394963785,6.82557705,171.02,171.01,41.18]
[1754394967493,148.20000001,171.03,171.01,41.18]
[1754394967771,148.20000001,171.03,171.01,41.86]
[1754394968578,148.20000001,171.03,171.01,53.19297003]
[1754394968873,148.20000001,171.03,171.01,47.02739298]
[1754394969182,148.20000001,171.03,171.01,47.70739298]